{"text_format":"3","workbook":"xlsx","n_sheets":4,"sheets":["Kuukausibudjetin yhteenveto","Tulot","Henkilöstökulut","Liiketoiminnan kulut"],"not_rendered":{"charts":1,"defined_names":14},"read":"whole","date_system":"1900"}

{"sheet":"Kuukausibudjetin yhteenveto","index":0,"n_rows":17,"n_cols":5,"rows_kept":17,"merged":[[0,1,0,3],[1,1,1,3],[1,4,1,5]]}
[null,"YRITYKSEN NIMI"]
[null,"KUUKAUSIBUDJETTI",null,null,"Päivämäärä"]
[]
[null,"BUDJETIN SUMMAT","ARVIOITU","TODELLINEN","EROTUS"]
[null,"Tulot",{"$f":"Tulot[[#Totals],[ARVIOITU]]","v":{"v":63300,"d":"63,300.00"}},{"$f":"Tulot[[#Totals],[TODELLINEN]]","v":{"v":57450,"d":"57,450.00"}},{"$f":"Summat[[#This Row],[TODELLINEN]]-Summat[[#This Row],[ARVIOITU]]","v":{"v":-5850,"d":"-5,850.00 "}}]
[null,"Kulut",{"$f":"Liiketoiminnan_kulut[[#Totals],[ARVIOITU]]+Henkilöstökulut[[#Totals],[ARVIOITU]]","v":{"v":54500,"d":"54,500.00"}},{"$f":"Liiketoiminnan_kulut[[#Totals],[TODELLINEN]]+Henkilöstökulut[[#Totals],[TODELLINEN]]","v":{"v":49630,"d":"49,630.00"}},{"$f":"Summat[[#This Row],[ARVIOITU]]-Summat[[#This Row],[TODELLINEN]]","v":{"v":4870,"d":"4,870.00"}}]
[null,"Saldo (tulot vähennettyinä kuluilla)",{"$f":"C5-C6","v":{"v":8800,"d":"8,800.00"}},{"$f":"D5-D6","v":{"v":7820,"d":"7,820.00"}},{"$f":"Summat[[#Totals],[TODELLINEN]]-Summat[[#Totals],[ARVIOITU]]","v":{"v":-980,"d":"-980.00 "}}]
[]
[]
[null,"MITKÄ OVAT VIISI SUURINTA LIIKETOIMINNAN KULUANI?"]
[null,"KULU","MÄÄRÄ","% KULUISTA","15 %:N VÄHENNYS"]
[null,{"$f":"INDEX(Liiketoiminnan_kulut[],MATCH(ViisiSuurintaKulua[[#This Row],[MÄÄRÄ]],Liiketoiminnan_kulut[VIISI SUURINTA MÄÄRÄÄ],0),1)","v":"Huolto ja korjaukset"},{"$f":"LARGE(Liiketoiminnan_kulut[VIISI SUURINTA MÄÄRÄÄ],1)","v":{"v":4600.000014,"d":"4,600.00"}},{"$f":"ViisiSuurintaKulua[[#This Row],[MÄÄRÄ]]/$D$6","v":{"v":0.09268587576062866,"d":"9.3%"}},{"$f":"ViisiSuurintaKulua[[#This Row],[MÄÄRÄ]]*0.15","v":{"v":690.0000021,"d":"690.00"}}]
[null,{"$f":"INDEX(Liiketoiminnan_kulut[],MATCH(ViisiSuurintaKulua[[#This Row],[MÄÄRÄ]],Liiketoiminnan_kulut[VIISI SUURINTA MÄÄRÄÄ],0),1)","v":"Tarvikkeet"},{"$f":"LARGE(Liiketoiminnan_kulut[VIISI SUURINTA MÄÄRÄÄ],2)","v":{"v":4500.00002,"d":"4,500.00"}},{"$f":"ViisiSuurintaKulua[[#This Row],[MÄÄRÄ]]/$D$6","v":{"v":0.09067096554503326,"d":"9.1%"}},{"$f":"ViisiSuurintaKulua[[#This Row],[MÄÄRÄ]]*0.15","v":{"v":675.000003,"d":"675.00"}}]
[null,{"$f":"INDEX(Liiketoiminnan_kulut[],MATCH(ViisiSuurintaKulua[[#This Row],[MÄÄRÄ]],Liiketoiminnan_kulut[VIISI SUURINTA MÄÄRÄÄ],0),1)","v":"Vuokra tai asuntolaina"},{"$f":"LARGE(Liiketoiminnan_kulut[VIISI SUURINTA MÄÄRÄÄ],3)","v":{"v":4500.000017,"d":"4,500.00"}},{"$f":"ViisiSuurintaKulua[[#This Row],[MÄÄRÄ]]/$D$6","v":{"v":0.09067096548458595,"d":"9.1%"}},{"$f":"ViisiSuurintaKulua[[#This Row],[MÄÄRÄ]]*0.15","v":{"v":675.00000255,"d":"675.00"}}]
[null,{"$f":"INDEX(Liiketoiminnan_kulut[],MATCH(ViisiSuurintaKulua[[#This Row],[MÄÄRÄ]],Liiketoiminnan_kulut[VIISI SUURINTA MÄÄRÄÄ],0),1)","v":"Verot"},{"$f":"LARGE(Liiketoiminnan_kulut[VIISI SUURINTA MÄÄRÄÄ],4)","v":{"v":3200.000021,"d":"3,200.00"}},{"$f":"ViisiSuurintaKulua[[#This Row],[MÄÄRÄ]]/$D$6","v":{"v":0.06447713119081201,"d":"6.4%"}},{"$f":"ViisiSuurintaKulua[[#This Row],[MÄÄRÄ]]*0.15","v":{"v":480.00000314999994,"d":"480.00"}}]
[null,{"$f":"INDEX(Liiketoiminnan_kulut[],MATCH(ViisiSuurintaKulua[[#This Row],[MÄÄRÄ]],Liiketoiminnan_kulut[VIISI SUURINTA MÄÄRÄÄ],0),1)","v":"Mainonta"},{"$f":"LARGE(Liiketoiminnan_kulut[VIISI SUURINTA MÄÄRÄÄ],5)","v":{"v":2500.000005,"d":"2,500.00"}},{"$f":"ViisiSuurintaKulua[[#This Row],[MÄÄRÄ]]/$D$6","v":{"v":0.05037275851299617,"d":"5.0%"}},{"$f":"ViisiSuurintaKulua[[#This Row],[MÄÄRÄ]]*0.15","v":{"v":375.00000074999997,"d":"375.00"}}]
[null,"Summa",{"$f":"SUBTOTAL(109,ViisiSuurintaKulua[MÄÄRÄ])","v":{"v":19300.000077000004,"d":"19,300.00"}},{"$f":"SUBTOTAL(109,ViisiSuurintaKulua[% KULUISTA])","v":{"v":0.388877696494056,"d":"38.9%"}},{"$f":"SUBTOTAL(109,ViisiSuurintaKulua[15 %:N VÄHENNYS])","v":{"v":2895.0000115499997,"d":"2,895.00"}}]

{"sheet":"Tulot","index":1,"n_rows":8,"n_cols":6,"rows_kept":8}
[null,{"$f":"YRITYKSEN_NIMI","v":"YRITYKSEN NIMI"}]
[null,{"$f":"BUDJETIN_otsikko","v":"KUUKAUSIBUDJETTI"}]
[]
[null,"TULOT","ARVIOITU","TODELLINEN","VIISI SUURINTA MÄÄRÄÄ","EROTUS"]
[null,"Nettomyynti",{"v":60000,"d":"60,000.00"},{"v":54000,"d":"54,000.00"},{"$f":"Tulot[[#This Row],[TODELLINEN]]+(10^-6)*ROW(Tulot[[#This Row],[TODELLINEN]])","v":{"v":54000.000005,"d":"54,000.00"}},{"$f":"Tulot[[#This Row],[TODELLINEN]]-Tulot[[#This Row],[ARVIOITU]]","v":{"v":-6000,"d":"-6,000.00 "}}]
[null,"Korkotulot",{"v":3000,"d":"3,000.00"},{"v":3000,"d":"3,000.00"},{"$f":"Tulot[[#This Row],[TODELLINEN]]+(10^-6)*ROW(Tulot[[#This Row],[TODELLINEN]])","v":{"v":3000.000006,"d":"3,000.00"}},{"$f":"Tulot[[#This Row],[TODELLINEN]]-Tulot[[#This Row],[ARVIOITU]]","v":{"v":0,"d":"0.00"}}]
[null,"Resurssien myynti (voitto/tappio)",{"v":300,"d":"300.00"},{"v":450,"d":"450.00"},{"$f":"Tulot[[#This Row],[TODELLINEN]]+(10^-6)*ROW(Tulot[[#This Row],[TODELLINEN]])","v":{"v":450.000007,"d":"450.00"}},{"$f":"Tulot[[#This Row],[TODELLINEN]]-Tulot[[#This Row],[ARVIOITU]]","v":{"v":150,"d":"150.00"}}]
[null,"Tulot yhteensä",{"$f":"SUBTOTAL(109,Tulot[ARVIOITU])","v":{"v":63300,"d":"63,300.00"}},{"$f":"SUBTOTAL(109,Tulot[TODELLINEN])","v":{"v":57450,"d":"57,450.00"}},null,{"$f":"SUBTOTAL(109,Tulot[EROTUS])","v":{"v":-5850,"d":"-5,850.00 "}}]

{"sheet":"Henkilöstökulut","index":2,"n_rows":8,"n_cols":6,"rows_kept":8}
[null,{"$f":"YRITYKSEN_NIMI","v":"YRITYKSEN NIMI"}]
[null,{"$f":"BUDJETIN_otsikko","v":"KUUKAUSIBUDJETTI"}]
[]
[null,"HENKILÖSTÖKULUT","ARVIOITU","TODELLINEN","VIISI SUURINTA MÄÄRÄÄ","EROTUS"]
[null,"Palkat",{"v":9500,"d":"9,500.00"},{"v":9600,"d":"9,600.00"},{"$f":"Henkilöstökulut[[#This Row],[TODELLINEN]]+(10^-6)*ROW(Henkilöstökulut[[#This Row],[TODELLINEN]])","v":{"v":9600.000005,"d":"9,600.00"}},{"$f":"Henkilöstökulut[[#This Row],[ARVIOITU]]-Henkilöstökulut[[#This Row],[TODELLINEN]]","v":{"v":-100,"d":"-100.00 "}}]
[null,"Työsuhde-etuudet",{"v":4000,"d":"4,000.00"},{"v":0,"d":"0.00"},{"$f":"Henkilöstökulut[[#This Row],[TODELLINEN]]+(10^-6)*ROW(Henkilöstökulut[[#This Row],[TODELLINEN]])","v":{"v":6e-06,"d":"0.00"}},{"$f":"Henkilöstökulut[[#This Row],[ARVIOITU]]-Henkilöstökulut[[#This Row],[TODELLINEN]]","v":{"v":4000,"d":"4,000.00"}}]
[null,"Provisio",{"v":5000,"d":"5,000.00"},{"v":4500,"d":"4,500.00"},{"$f":"Henkilöstökulut[[#This Row],[TODELLINEN]]+(10^-6)*ROW(Henkilöstökulut[[#This Row],[TODELLINEN]])","v":{"v":4500.000007,"d":"4,500.00"}},{"$f":"Henkilöstökulut[[#This Row],[ARVIOITU]]-Henkilöstökulut[[#This Row],[TODELLINEN]]","v":{"v":500,"d":"500.00"}}]
[null,"Henkilöstökulut yhteensä",{"$f":"SUBTOTAL(109,Henkilöstökulut[ARVIOITU])","v":{"v":18500,"d":"18,500.00"}},{"$f":"SUBTOTAL(109,Henkilöstökulut[TODELLINEN])","v":{"v":14100,"d":"14,100.00"}},null,{"$f":"SUBTOTAL(109,Henkilöstökulut[EROTUS])","v":{"v":4400,"d":"4,400.00"}}]

{"sheet":"Liiketoiminnan kulut","index":3,"n_rows":25,"n_cols":6,"rows_kept":25}
[null,{"$f":"YRITYKSEN_NIMI","v":"YRITYKSEN NIMI"}]
[null,{"$f":"BUDJETIN_otsikko","v":"KUUKAUSIBUDJETTI"}]
[]
[null,"LIIKETOIMINNAN KULUT","ARVIOITU","TODELLINEN","VIISI SUURINTA MÄÄRÄÄ","EROTUS"]
[null,"Mainonta",{"v":3000,"d":"3,000.00"},{"v":2500,"d":"2,500.00"},{"$f":"Liiketoiminnan_kulut[[#This Row],[TODELLINEN]]+(10^-6)*ROW(Liiketoiminnan_kulut[[#This Row],[TODELLINEN]])","v":{"v":2500.000005,"d":"2,500.00"}},{"$f":"Liiketoiminnan_kulut[[#This Row],[ARVIOITU]]-Liiketoiminnan_kulut[[#This Row],[TODELLINEN]]","v":{"v":500,"d":"500.00"}}]
[null,"Luottotappiot",{"v":2000,"d":"2,000.00"},{"v":2000,"d":"2,000.00"},{"$f":"Liiketoiminnan_kulut[[#This Row],[TODELLINEN]]+(10^-6)*ROW(Liiketoiminnan_kulut[[#This Row],[TODELLINEN]])","v":{"v":2000.000006,"d":"2,000.00"}},{"$f":"Liiketoiminnan_kulut[[#This Row],[ARVIOITU]]-Liiketoiminnan_kulut[[#This Row],[TODELLINEN]]","v":{"v":0,"d":"0.00"}}]
[null,"Käteisalennukset",{"v":1500,"d":"1,500.00"},{"v":2175,"d":"2,175.00"},{"$f":"Liiketoiminnan_kulut[[#This Row],[TODELLINEN]]+(10^-6)*ROW(Liiketoiminnan_kulut[[#This Row],[TODELLINEN]])","v":{"v":2175.000007,"d":"2,175.00"}},{"$f":"Liiketoiminnan_kulut[[#This Row],[ARVIOITU]]-Liiketoiminnan_kulut[[#This Row],[TODELLINEN]]","v":{"v":-675,"d":"-675.00 "}}]
[null,"Toimituskulut",{"v":2000,"d":"2,000.00"},{"v":1500,"d":"1,500.00"},{"$f":"Liiketoiminnan_kulut[[#This Row],[TODELLINEN]]+(10^-6)*ROW(Liiketoiminnan_kulut[[#This Row],[TODELLINEN]])","v":{"v":1500.000008,"d":"1,500.00"}},{"$f":"Liiketoiminnan_kulut[[#This Row],[ARVIOITU]]-Liiketoiminnan_kulut[[#This Row],[TODELLINEN]]","v":{"v":500,"d":"500.00"}}]
[null,"Poistot",{"v":1000,"d":"1,000.00"},{"v":1000,"d":"1,000.00"},{"$f":"Liiketoiminnan_kulut[[#This Row],[TODELLINEN]]+(10^-6)*ROW(Liiketoiminnan_kulut[[#This Row],[TODELLINEN]])","v":{"v":1000.000009,"d":"1,000.00"}},{"$f":"Liiketoiminnan_kulut[[#This Row],[ARVIOITU]]-Liiketoiminnan_kulut[[#This Row],[TODELLINEN]]","v":{"v":0,"d":"0.00"}}]
[null,"Maksut ja tilaukset",{"v":500,"d":"500.00"},{"v":525,"d":"525.00"},{"$f":"Liiketoiminnan_kulut[[#This Row],[TODELLINEN]]+(10^-6)*ROW(Liiketoiminnan_kulut[[#This Row],[TODELLINEN]])","v":{"v":525.00001,"d":"525.00"}},{"$f":"Liiketoiminnan_kulut[[#This Row],[ARVIOITU]]-Liiketoiminnan_kulut[[#This Row],[TODELLINEN]]","v":{"v":-25,"d":"-25.00 "}}]
[null,"Vakuutukset",{"v":1300,"d":"1,300.00"},{"v":1275,"d":"1,275.00"},{"$f":"Liiketoiminnan_kulut[[#This Row],[TODELLINEN]]+(10^-6)*ROW(Liiketoiminnan_kulut[[#This Row],[TODELLINEN]])","v":{"v":1275.000011,"d":"1,275.00"}},{"$f":"Liiketoiminnan_kulut[[#This Row],[ARVIOITU]]-Liiketoiminnan_kulut[[#This Row],[TODELLINEN]]","v":{"v":25,"d":"25.00"}}]
[null,"Korot",{"v":2000,"d":"2,000.00"},{"v":2200,"d":"2,200.00"},{"$f":"Liiketoiminnan_kulut[[#This Row],[TODELLINEN]]+(10^-6)*ROW(Liiketoiminnan_kulut[[#This Row],[TODELLINEN]])","v":{"v":2200.000012,"d":"2,200.00"}},{"$f":"Liiketoiminnan_kulut[[#This Row],[ARVIOITU]]-Liiketoiminnan_kulut[[#This Row],[TODELLINEN]]","v":{"v":-200,"d":"-200.00 "}}]
[null,"Lakiasiat ja valvonta",{"v":1000,"d":"1,000.00"},{"v":800,"d":"800.00"},{"$f":"Liiketoiminnan_kulut[[#This Row],[TODELLINEN]]+(10^-6)*ROW(Liiketoiminnan_kulut[[#This Row],[TODELLINEN]])","v":{"v":800.000013,"d":"800.00"}},{"$f":"Liiketoiminnan_kulut[[#This Row],[ARVIOITU]]-Liiketoiminnan_kulut[[#This Row],[TODELLINEN]]","v":{"v":200,"d":"200.00"}}]
[null,"Huolto ja korjaukset",{"v":4500,"d":"4,500.00"},{"v":4600,"d":"4,600.00"},{"$f":"Liiketoiminnan_kulut[[#This Row],[TODELLINEN]]+(10^-6)*ROW(Liiketoiminnan_kulut[[#This Row],[TODELLINEN]])","v":{"v":4600.000014,"d":"4,600.00"}},{"$f":"Liiketoiminnan_kulut[[#This Row],[ARVIOITU]]-Liiketoiminnan_kulut[[#This Row],[TODELLINEN]]","v":{"v":-100,"d":"-100.00 "}}]
[null,"Toimistotarvikkeet",{"v":800,"d":"800.00"},{"v":750,"d":"750.00"},{"$f":"Liiketoiminnan_kulut[[#This Row],[TODELLINEN]]+(10^-6)*ROW(Liiketoiminnan_kulut[[#This Row],[TODELLINEN]])","v":{"v":750.000015,"d":"750.00"}},{"$f":"Liiketoiminnan_kulut[[#This Row],[ARVIOITU]]-Liiketoiminnan_kulut[[#This Row],[TODELLINEN]]","v":{"v":50,"d":"50.00"}}]
[null,"Postimaksut",{"v":400,"d":"400.00"},{"v":350,"d":"350.00"},{"$f":"Liiketoiminnan_kulut[[#This Row],[TODELLINEN]]+(10^-6)*ROW(Liiketoiminnan_kulut[[#This Row],[TODELLINEN]])","v":{"v":350.000016,"d":"350.00"}},{"$f":"Liiketoiminnan_kulut[[#This Row],[ARVIOITU]]-Liiketoiminnan_kulut[[#This Row],[TODELLINEN]]","v":{"v":50,"d":"50.00"}}]
[null,"Vuokra tai asuntolaina",{"v":4100,"d":"4,100.00"},{"v":4500,"d":"4,500.00"},{"$f":"Liiketoiminnan_kulut[[#This Row],[TODELLINEN]]+(10^-6)*ROW(Liiketoiminnan_kulut[[#This Row],[TODELLINEN]])","v":{"v":4500.000017,"d":"4,500.00"}},{"$f":"Liiketoiminnan_kulut[[#This Row],[ARVIOITU]]-Liiketoiminnan_kulut[[#This Row],[TODELLINEN]]","v":{"v":-400,"d":"-400.00 "}}]
[null,"Myynnin kulut",{"v":350,"d":"350.00"},{"v":400,"d":"400.00"},{"$f":"Liiketoiminnan_kulut[[#This Row],[TODELLINEN]]+(10^-6)*ROW(Liiketoiminnan_kulut[[#This Row],[TODELLINEN]])","v":{"v":400.000018,"d":"400.00"}},{"$f":"Liiketoiminnan_kulut[[#This Row],[ARVIOITU]]-Liiketoiminnan_kulut[[#This Row],[TODELLINEN]]","v":{"v":-50,"d":"-50.00 "}}]
[null,"Toimitus ja varastointi",{"v":900,"d":"900.00"},{"v":840,"d":"840.00"},{"$f":"Liiketoiminnan_kulut[[#This Row],[TODELLINEN]]+(10^-6)*ROW(Liiketoiminnan_kulut[[#This Row],[TODELLINEN]])","v":{"v":840.000019,"d":"840.00"}},{"$f":"Liiketoiminnan_kulut[[#This Row],[ARVIOITU]]-Liiketoiminnan_kulut[[#This Row],[TODELLINEN]]","v":{"v":60,"d":"60.00"}}]
[null,"Tarvikkeet",{"v":5000,"d":"5,000.00"},{"v":4500,"d":"4,500.00"},{"$f":"Liiketoiminnan_kulut[[#This Row],[TODELLINEN]]+(10^-6)*ROW(Liiketoiminnan_kulut[[#This Row],[TODELLINEN]])","v":{"v":4500.00002,"d":"4,500.00"}},{"$f":"Liiketoiminnan_kulut[[#This Row],[ARVIOITU]]-Liiketoiminnan_kulut[[#This Row],[TODELLINEN]]","v":{"v":500,"d":"500.00"}}]
[null,"Verot",{"v":3000,"d":"3,000.00"},{"v":3200,"d":"3,200.00"},{"$f":"Liiketoiminnan_kulut[[#This Row],[TODELLINEN]]+(10^-6)*ROW(Liiketoiminnan_kulut[[#This Row],[TODELLINEN]])","v":{"v":3200.000021,"d":"3,200.00"}},{"$f":"Liiketoiminnan_kulut[[#This Row],[ARVIOITU]]-Liiketoiminnan_kulut[[#This Row],[TODELLINEN]]","v":{"v":-200,"d":"-200.00 "}}]
[null,"Puhelin",{"v":250,"d":"250.00"},{"v":280,"d":"280.00"},{"$f":"Liiketoiminnan_kulut[[#This Row],[TODELLINEN]]+(10^-6)*ROW(Liiketoiminnan_kulut[[#This Row],[TODELLINEN]])","v":{"v":280.000022,"d":"280.00"}},{"$f":"Liiketoiminnan_kulut[[#This Row],[ARVIOITU]]-Liiketoiminnan_kulut[[#This Row],[TODELLINEN]]","v":{"v":-30,"d":"-30.00 "}}]
[null,"Lämmitys, sähkö ja vesi",{"v":1400,"d":"1,400.00"},{"v":1385,"d":"1,385.00"},{"$f":"Liiketoiminnan_kulut[[#This Row],[TODELLINEN]]+(10^-6)*ROW(Liiketoiminnan_kulut[[#This Row],[TODELLINEN]])","v":{"v":1385.000023,"d":"1,385.00"}},{"$f":"Liiketoiminnan_kulut[[#This Row],[ARVIOITU]]-Liiketoiminnan_kulut[[#This Row],[TODELLINEN]]","v":{"v":15,"d":"15.00"}}]
[null,"Muut",{"v":1000,"d":"1,000.00"},{"v":750,"d":"750.00"},{"$f":"Liiketoiminnan_kulut[[#This Row],[TODELLINEN]]+(10^-6)*ROW(Liiketoiminnan_kulut[[#This Row],[TODELLINEN]])","v":{"v":750.000024,"d":"750.00"}},{"$f":"Liiketoiminnan_kulut[[#This Row],[ARVIOITU]]-Liiketoiminnan_kulut[[#This Row],[TODELLINEN]]","v":{"v":250,"d":"250.00"}}]
[null,"Liiketoiminnan kulut yhteensä",{"$f":"SUBTOTAL(109,Liiketoiminnan_kulut[ARVIOITU])","v":{"v":36000,"d":"36,000.00"}},{"$f":"SUBTOTAL(109,Liiketoiminnan_kulut[TODELLINEN])","v":{"v":35530,"d":"35,530.00"}},null,{"$f":"SUBTOTAL(109,Liiketoiminnan_kulut[EROTUS])","v":{"v":470,"d":"470.00"}}]